Cogmind - Beta 17 @@@ ROGUE MODE // 2026.06.23 @ 19:52:56 Player: microsand Result: Destroyed by 9N-BV2(R) with Subdweller Machine Gun Performance ------------- Evolutions (0) 0 Regions Visited (2) 400 Robots Destroyed (28) 140 Value Destroyed (587) 587 Prototype IDs (0) 0 Alien Tech Used (0) 0 Bonus (0) 0 TOTAL SCORE: 1127 Bonus ------- None Cogmind --------- Core Integrity 0/250 Matter 265/300 Energy 243/250 System Corruption 0% Temperature Cool (0) Movement Treading (160) Location -10/Subcaves Parts ------- > --- POWER (1) -------- Ion Engine > --- PROPULSION (2) --- Light Treads > --- UTILITY (2) ------ Small Storage Unit > --- WEAPON (2) ------- Particle Gun > --- INVENTORY (8) ---- Improved Aluminum Leg EM Pulse Gun Small Laser Makeshift Hammer Peak State ------------ > --- POWER ------------ Subdweller Power Source > --- PROPULSION ------- Improved Aluminum Leg Improved Aluminum Leg > --- UTILITY ---------- Small Storage Unit Seismic Detector > --- WEAPON ----------- Heavy Riot Gun Makeshift Hammer > --- INVENTORY -------- Ion Engine Light Treads Light Treads EM Pulse Gun Small Laser Particle Gun Light Assault Rifle [Rating: 16] Favorites ----------- Power Subdweller Power Source Engine Subdweller Power Source Propulsion Improved Aluminum Leg Treads Light Treads Leg Improved Aluminum Leg Utility Small Storage Unit Device Seismic Detector Storage Small Storage Unit Weapon Particle Gun Energy Gun Particle Gun Ballistic Gun Light Assault Rifle Ballistic Cannon Battle Cannon Impact Weapon Makeshift Hammer Build | -11 -10 -10 ------- Run | Yrd Mat Sub Slots Evolved . | . . . Power . | . . . Propulsion . | . . . Utility . | . . . Weapon . | . . . Parts Attached 20 | 7 4 9 Power 6 | 1 . 5 Engine 6 | 1 . 5 Core . | . . . Reactor . | . . . Propulsion 4 | 2 2 . Treads 2 | 2 . . Leg 2 | . 2 . Wheel . | . . . Hover . | . . . Flight . | . . . Utility 2 | 2 . . Device 1 | 1 . . Storage 1 | 1 . . Processor . | . . . Hackware . | . . . Protection . | . . . Artifact . | . . . Weapon 8 | 2 2 4 Energy Gun 5 | 1 2 2 Energy Cannon . | . . . Ballistic Gun 1 | 1 . . Ballistic Cannon 1 | . . 1 Launcher . | . . . Special Weapon . | . . . Impact Weapon 1 | . . 1 Slashing Weapon . | . . . Piercing Weapon . | . . . Special Melee Weapon . | . . . Unidentified Prototypes . | . . . Parts Lost 8 | . . 8 Power 2 | . . 2 Propulsion 2 | . . 2 Utility 1 | . . 1 Weapon 3 | . . 3 Highest Loss Streak 3 | . . 3 To Critical Strikes . | . . . Average Backups 5 | 2 3 6 Power 1 | 1 1 1 Propulsion 1 | . . 1 Utility . | . . . Weapon 2 | . 1 3 Tool/Special . | . . . Unused Backups 1 | . . 1 Power . | . . . Propulsion . | . . . Utility . | . . . Weapon 1 | . . 1 Tool/Special . | . . . Average Slot Usage (%) 90 | . 100 88 Engine 13 | . 14 13 Treads 3 | . 20 . Leg 16 | . 7 17 Device 13 | . 14 13 Storage 14 | . 14 14 Energy Gun 17 | . 17 17 Ballistic Gun 2 | . 10 1 Ballistic Cannon 2 | . . 2 Impact Weapon 5 | . . 6 Peak Build Rating 16 | 7 11 16 Average Rating 10 | 4 8 11 On Entrance 6 | . 7 11 Avg Prop Armor Cover (%) . | . . . Naked Turns . | . . . Heaviest Build 18 | 11 15 18 Greatest Support 40 | 40 40 40 Greatest Overweight (x) 1 | . . 1 Average Overweight (x) . | . . . Largest Inventory Capacity 8 | 8 8 8 Average Capacity 7 | 7 8 8 Most Carried 8 | 5 7 8 Average Carried 5 | 2 3 6 Final Capacity 8 | 8 8 8 Final Carried 7 | 2 7 4 Class Distribution -------------------- 100% | Mutant Dominant Class ---------------- Mutant | -10/Materials Mutant | -10/Subcaves Resources | -11 -10 -10 ----------- Run | Yrd Mat Sub Matter Collected 516 | 290 59 167 Remotely . | . . . Salvage Created 860 | 302 133 425 Parts 63 | 25 8 30 Haulers Intercepted . | . . . Recyclers Shooed 1 | 1 . . Parts Field Recycled . | . . . Retrieved Matter . | . . . Parts Self-Destructed 15 | . . 15 Prevented 1 | . . 1 Parts Restored . | . . . Kills | -11 -10 -10 ------- Run | Yrd Mat Sub Combat Hostiles Destroyed 16 | . 3 13 Guns 15 | . 3 12 Cannons 1 | . . 1 Classes Destroyed 8 | 3 2 3 Worker 2 | 2 . . Tunneler 8 | 8 . . Recycler 1 | 1 . . Operator 1 | . 1 . Swarmer 4 | . . 4 Grunt 3 | . 3 . Sentry 1 | . . 1 Subdweller 8 | . . 8 Best Kill Streak 4 | 3 3 4 Combat Bots Only 4 | . 2 4 Max Kills in Single Turn 2 | 1 1 2 Gunslinging . | . . . Exploded . | . . . Melee . | . . . Uniques/NPCs Destroyed . | . . . Combat | -11 -10 -10 -------- Run | Yrd Mat Sub Hostile Shots Fired 98 | . 15 83 Missed 28 | . 5 23 Hits 70 | . 10 60 Projectile 70 | . 10 60 Critical Strikes 2 | . . 2 Damage Taken 1138 | . 107 1031 Core 271 | . . 271 Absorbed by Shields . | . . . Core Remaining (%) 100 | 100 . . Volleys Fired 89 | 30 11 48 Largest 2 | 2 2 2 Hottest 130 | 60 60 130 Shots Fired 168 | 60 22 86 Gun 161 | 60 22 79 Cannon 7 | . . 7 Launcher . | . . . Special . | . . . Kinetic 57 | 30 11 16 Thermal 96 | 30 11 55 Explosive . | . . . Electromagnetic 15 | . . 15 Robot Hit Streak 28 | 7 7 28 Robot Miss Streak 4 | 4 1 2 Penetration Max . | . . . Secondary Targets . | . . . Shots Hit Robots 114 | 33 16 65 Core Hits 51 | 17 8 26 Critical Kills . | . . . Critical Parts Destroyed . | . . . Critical Strikes 4 | . . 4 Burn 4 | . . 4 Melee Attacks 9 | . . 9 Impact 9 | . . 9 Slashing . | . . . Piercing . | . . . Sneak Attacks . | . . . Combat Hostiles . | . . . Follow-up Attacks . | . . . Damage Inflicted 1487 | 329 160 998 Guns 1399 | 329 160 910 Cannons 82 | . . 82 Explosions . | . . . Melee . | . . . Ramming 6 | . . 6 Kinetic 318 | 107 63 148 Thermal 938 | 222 97 619 Explosive . | . . . Electromagnetic 225 | . . 225 Impact . | . . . Slashing . | . . . Piercing . | . . . Highest Corruption . | . . . Average Corruption . | . . . Corruption Purged . | . . . Corruption Blocked . | . . . Overload Shots . | . . . Overflow Damage . | . . . Projectiles . | . . . Explosions . | . . . Melee . | . . . Knockbacks 1 | . . 1 Impact . | . . . Kinetic 1 | . . 1 Secondary . | . . . Self-Inflicted Damage . | . . . Shots . | . . . Rammed . | . . . Targets Rammed 1 | . . 1 Kicked 1 | . . 1 Crushed . | . . . Highest Temperature 82 | 40 82 60 Average Temperature 19 | 13 35 16 Received Heat Transfer 228 | . 60 168 Siege Activations . | . . . Martial Activations . | . . . Shielding Activations . | . . . Robots Disrupted . | . . . Combat Hostiles . | . . . Robots Corrupted . | . . . Combat Hostiles . | . . . Parts Fried 3 | . . 3 Impact Corruptions . | . . . Robots Melted . | . . . Combat Hostiles . | . . . Parts Melted 3 | . . 3 Heat Transferred 2501 | 500 225 1776 Parts Sabotaged . | . . . Parts Stolen . | . . . Parts Stripped . | . . . Power Chain Reactions . | . . . Alert | -11 -10 -10 ------- Run | Yrd Mat Sub Maximum Alert Level . | . . . Low Security (%) 100 | 100 100 . Level 1 . | . . . Level 2 . | . . . Level 3 . | . . . Level 4 . | . . . Level 5 . | . . . High Security . | . . . Max Security . | . . . Peak Influence 50 | 10 50 . Initial . | . . . Average 5 | 1 7 . Influence Increases 275 | 55 90 130 Destroy 0b10 Robot/C 160 | . 60 100 Destroy 0b10 Robot/NC 60 | 55 5 . Destroy Leader 20 | . 20 . Successful Hack 5 | . 5 . Lose Combat Pursuer 30 | . . 30 Influence Decreases 275 | 55 90 130 Time Decay 244 | 55 90 99 Lost Part 31 | . . 31 Squads Dispatched 2 | . 2 . Investigation 1 | . 1 . Extermination . | . . . Reinforcement 1 | . 1 . Assault . | . . . Garrison . | . . . Intercept . | . . . Searches Triggered . | . . . Construction Impeded . | . . . Haulers Reinforced . | . . . Active Scanning Responses . | . . . Cargo Convoy Interrupts . | . . . Stealth | -11 -10 -10 --------- Run | Yrd Mat Sub Distress Signals . | . . . Communications Jammed . | . . . Distress Signals . | . . . Times Spotted 23 | . 5 18 Peak Tracking Total 5 | . 3 5 Tactical Retreats 2 | . . 2 Traps | -11 -10 -10 ------- Run | Yrd Mat Sub Traps Triggered 2 | . 1 1 Indirectly . | . . . Trap Hack Attempts . | . . . Triggered . | . . . Disarmed . | . . . Reprogrammed . | . . . Reused . | . . . Traps Extracted . | . . . Installed . | . . . Triggered . | . . . Machines | -11 -10 -10 ---------- Run | Yrd Mat Sub Machines Disabled . | . . . Max in Single Turn . | . . . Machines Repaired . | . . . Machines Dismantled . | . . . Machines Sabotaged . | . . . Overloaded Fab Kills . | . . . Hacking | -11 -10 -10 --------- Run | Yrd Mat Sub Machines Accessed 3 | . 3 . Terminals 3 | . 3 . Fabricators . | . . . Repair Stations . | . . . Recycling Units . | . . . Scanalyzers . | . . . Garrison Access . | . . . Total Hacks 5 | . 5 . Successful 2 | . 2 . Failed 3 | . 3 . Catastrophic . | . . . Database Lockouts . | . . . Manual 5 | . 5 . Terminals 5 | . 5 . Fabricators . | . . . Repair Stations . | . . . Recycling Units . | . . . Scanalyzers . | . . . Garrison Access . | . . . Terminal Hacks . | . . . Fabricator Hacks . | . . . Repair Station Hacks . | . . . Recycling Unit Hacks . | . . . Scanalyzer . | . . . Garrison Access Hacks . | . . . Unauthorized Hacks 2 | . 2 . Terminals 2 | . 2 . Botnet 2 | . 2 . Fabricators . | . . . Repair Stations . | . . . Recycling Units . | . . . Scanalyzers . | . . . Garrison Access . | . . . Data Cores Recovered . | . . . Used . | . . . Hacking Detections 1 | . 1 . Full Trace Events . | . . . Feedback Events . | . . . Feedback Blocked . | . . . Robot Schematics Acquired . | . . . Robots Built . | . . . Authchips . | . . . Time . | . . . Total Robot Build Rating . | . . . Part Schematics Acquired . | . . . Parts Built . | . . . Authchips . | . . . Time . | . . . Total Part Build Rating . | . . . Part Studies Acquired . | . . . Parts Repaired . | . . . Time . | . . . Parts Recycled . | . . . Recycled Matter . | . . . Retrieved Matter . | . . . Retrieved Components . | . . . Parts Scanalyzed . | . . . Part Schematics Acquired . | . . . Parts Damaged . | . . . Bothacking | -11 -10 -10 ------------ Run | Yrd Mat Sub Used RIF Installer . | . . . Robots Hacked . | . . . Non-combat . | . . . Combat . | . . . Robot Hacks Applied . | . . . Relay Couplers Released . | . . . Fabnet Peak Effective % . | . . . Robots Rewired . | . . . Allies Hacked . | . . . Hacks Repelled . | . . . Allies | -11 -10 -10 -------- Run | Yrd Mat Sub Total Allies . | . . . Largest Group . | . . . Highest-Rated Group . | . . . Highest-Rated Ally . | . . . Total Orders . | . . . Ally Attacks . | . . . Total Damage . | . . . Kills . | . . . Allies Corrupted . | . . . Allies Melted . | . . . Intel | -11 -10 -10 ------- Run | Yrd Mat Sub Active Infowar (turns) 3726 | 3 524 3199 Seismic 3726 | 3 524 3199 Robot Analysis Total . | . . . Derelict Logs Recovered 2 | . . 2 Drone Launches . | . . . Drone Recoveries . | . . . Exploration | -11 -10 -10 ------------- Run | Yrd Mat Sub Turns Passed 4059 | 321 524 3214 Spaces Moved 2145 | 186 169 1790 Core 69 | 69 . . Treads 234 | 117 100 17 Legs 1842 | . 69 1773 Wheels . | . . . Hover . | . . . Flight . | . . . Fastest Speed 50 | 50 120 120 Average Speed 158 | 119 143 164 Slowest Speed 190 | 160 160 190 Overloaded Moves . | . . . Propulsion Burnouts . | . . . Robots Hopped . | . . . Potential Cave-ins . | . . . Cave-ins Triggered . | . . . Exploration Rate (%) 32 | 4 26 67 Regions Visited 2 Branch Regions 1 Pre-discovered Areas 1 | . . 1 Known Exits Taken . | . . . Unknown Exits Taken 2 | 1 1 . Scrap Searched 6 | . . 6 Spaces Dug . | . . . Terrain Destroyed 1 | . . 1 Melee . | . . . Projectile 1 | . . 1 AOE . | . . . Terrain Rammed . | . . . Walls Destroyed . | . . . Machines Disabled . | . . . Actions | -11 -10 -10 --------- Run | Yrd Mat Sub Total 2627 | 231 428 1968 Wait 326 | . 240 86 Move 2143 | 185 168 1790 Hop . | . . . Pick Up 22 | 9 5 8 Fast Attach . | . . . Attach 18 | 7 . 11 Detach 1 | . . 1 Swap 12 | . 4 8 Drop 6 | . . 6 Fire 89 | 30 11 48 Melee 9 | . . 9 Ram . | . . . Kick 1 | . . 1 Crush . | . . . Escape Stasis . | . . . Rewire . | . . . Trap . | . . . Miscellaneous . | . . . Route ------- -11/Scrapyard -10/Materials (discovered 2 exits: [*Mat] / [*Sub]) -10/Subcaves (discovered 3 exits: [*Mat x2] / *Rec) History --------- Turn | Location | Event 5 | -11/Scrapyard | Discovered new exit (range 16) 322 | -11/Scrapyard | Entered Materials 340 | -10/Materials | Build established: Mutant 640 | -10/Materials | Discovered new exit (range 12) 834 | -10/Materials | Discovered new exit (range 6) 846 | -10/Materials | Entered Subcaves 848 | -10/Subcaves | Identified exit to Recycling 897 | -10/Subcaves | Discovered new exit (range 6) 1028 | -10/Subcaves | Shifting Twisted Machinery released Mak. System Shield 1037 | -10/Subcaves | Shifting Twisted Machinery released Mak. Hammer 1111 | -10/Subcaves | Shifting Twisted Machinery released Flamer 1111 | -10/Subcaves | Learned location of 1 exit from Materials 1169 | -10/Subcaves | Discovered new exit (range 7) 1504 | -10/Subcaves | Shifting Twisted Machinery released Hvy. Riot Gun 1732 | -10/Subcaves | Core integrity fell below 50% 2113 | -10/Subcaves | Shifting Twisted Machinery released Piercing Trap 2123 | -10/Subcaves | Shifting Twisted Machinery released Flamer 2813 | -10/Subcaves | Core integrity fell below 20% 3888 | -10/Subcaves | Learned location of Zion (-7) 3888 | -10/Subcaves | Met a Zionite searching for "candidates" 4060 | -10/Subcaves | Destroyed by 9N-BV2(R) with Subdweller Machine Gun Last Messages --------------- 03474_ 25-9KG(R) affixes Scrap Shield Fragment to Scrap Shield. 03477_ Sub. Optics fried. 03477_ Sub. Laser fried. 03477_ Disposable Heat Sink fried. 03477_ 25-9KG(R) destroyed. 03772_ 8O-12X(u) deconstructs Twisted Machinery. 03888_ G2-H3D(z): "Hey you! It's really dangerous down here, I feel that you could die at any moment. For your health and safety might I suggest a trip to Zion?" World map updated: -7/Zion. 03990_ Sub. Power Source shoots sparks and powers down. 03999_ Dropped Broken Sub. Power Source. 04045_ Seismic Detector destroyed. 04047_ L5-EFY(R) destroyed. 04052_ Riot Gun destroyed. 04058_ Lgt. Treads destroyed. Map ----- +----------------------------------------------------+ | ???????????????????????????????# #?## | | ???????????????????????????????# #?## | | ???????????????????????????????## #?## | | ????????????????????????????????## #??# | | ?????????????????????????????????## #?#& | | ??????????????????????????????????## | | ???????????????????????????????????## #### "" | | ????????????????????????????????????###??## ##" # | | ??????????????????????????????????????????#####"" | | ???????????????????????? ????????????????????# "" | | ?????????????????????? ????????????????????# " | | ?????????????????????? ???????????????????? ?? | | ?????????????????????? #?????????????????? ?? | | ??????????????? ????? ####???????????????????? | | ?????????????? ????? ????????????????????? | | ?????????????? ???? ????????????????????? | | ??????????????? ???# ??????#########?????? | | ???????????????"" #?## #????###" ##????? | | ??????????????" " ## #????# " #??### | | ?????????????"""" #????# " ""#?## | | ?????????????" =##???## " ##" ### | | ?????????????" ####?### ####" | | ???????????? " ##?## #??# | | ??????????????? ###" #??# | | ??????????????????""""" ### ##?# | | ??????????????????##"""##@! ##?### ### | | ????????????????????# ?##%R #???## ## | | ????????????????????# ?##* #??## ## | | ????????????????????# ## ##??# # | | ?????????????????#??# ##??## | | ????????????????"""## #??## ## | | ???????????# """" ##?## ## ## | | ????????????# #??# ### #?## | | ????????????# ##?## ##? ##??? | | ????????????####### ## * ##?## ##?# ##???? | | ??????????????????###?#### #?## ###??####????? | | ????????????????????????# ### ##???????????? | | ????????????????????????## #???????????? | | ????????????????????????# #??????????? | | ????????????????????????## #?????????? | | ?????????????????????????###### #####?????????? | | ??????????????????????????????# #?????????????? | | ??????????????????????????????# #????????????? | | ?????????????????????????????? #????????????? | | ?????????????????????????????? #????????????? | | ????????????????????????????? ##????????????? | | ????????????????????????????? ##?????????????? | | ?????????????????????????????# #??????????????? | | ?????????????????????????????# ??????????????? | | ?????????????????????????????# ??????????????? | +----------------------------------------------------+ Best States ------------- Heat Dissipation 25 Energy Generation 15 Energy Capacity 250 Matter Stores 300 Matter Capacity 300 Sight Range 16 Terrain Scan Density 10 Evasion (%) 55 Recoil Reduction 2 Item Schematics ----------------- None Robot Schematics ------------------ None Fabricated ------------ Nothing Repaired ---------- Nothing Studied --------- None Alien Tech Used ----------------- None Achievements -------------- None Challenges ------------ None Game ------ Seed TitaniumSwarmCompactor Manual? 0 Play Time 00:15:43 Cumulative 28.7 hours Start 2026.06.23 @ 19:39:05 End 2026.06.23 @ 19:52:56 Sessions 1 Manual Loads 0 Difficulty Rogue Special Mode None Game No. 78 Rogue 78 Adventurer 0 Explorer 0 Win Type - Total 1 Types 1/0/0/0/0/0/0/0/0/0 Lore% 38 Gallery% 30 Achievement% 24 Wizard Run 0 Options --------- Layout 1 ASCII 0 Keyboard 0 Movement Numpad Keybinds 0 Fullscreen 2 Font 24/Terminus Map View 50x35 Zoom Use 0% Tactical HUD 1 Map Filters NONE Filters NONE Steam 1 RUN: e2ef0645-7e19-49f5-b91d-b97323c4e400